bitfinex-derivatives/quotes_SOLF0:USTF0_20250623
["timestamp","ask_amount","ask_price","bid_price","bid_amount"]
[1750718384592,2.3249,144.9,144.82,72.06]
[1750718384795,8.60578834,144.9,144.82,72.06]
[1750718385196,6.8974,144.88,144.84,6.8989]
[1750718385396,8.60578834,144.9,144.84,6.8989]
[1750718385598,2.3249,144.9,144.84,6.8989]
[1750718385801,2.3249,144.9,144.82,78.34088834]
[1750718385992,2.3249,144.9,144.82,84.42746341]
[1750718386213,6.8962,144.9,144.86,6.8978]
[1750718386406,72.08,144.92,144.84,6.28088834]
[1750718386897,72.08,144.92,144.82,78.14657507]
[1750718387094,6.28088834,144.9,144.82,72.06]
[1750718387502,6.28088834,144.9,144.81,6.9001]
[1750718387698,6.28088834,144.9,144.8,8.39837507]
[1750718387897,6.28088834,144.9,144.79,791.10088834]
[1750718387898,6.8998,144.83,144.79,12.98787507]
[1750718388202,6.28088834,144.86,144.79,6.9013]
[1750718388415,6.28088834,144.86,144.77,80.53247507]
[1750718388602,6.9002,144.82,144.78,6.9018]
[1750718388796,6.28088834,144.86,144.77,80.53247507]
[1750718389106,78.36088834,144.92,144.82,6.28088834]
[1750718389498,78.36088834,144.92,144.82,12.36746341]
[1750718389704,6.8962,144.9,144.86,6.8976]
[1750718389906,72.08,144.92,144.84,8.69668834]
[1750718390111,72.08,144.92,144.84,14.78326341]
[1750718390299,72.08,144.92,144.84,8.69668834]
[1750718390702,6.8973,144.88,144.84,8.69668834]
[1750718391012,78.36088834,144.92,144.84,8.69668834]
[1750718391503,6.28088834,144.9,144.84,2.4158]
[1750718391707,6.28088834,144.9,144.8,6.08657507]
[1750718391906,6.28088834,144.86,144.79,6.08657507]
[1750718392103,6.28088834,144.86,144.78,8.42497507]
[1750718392910,6.28088834,144.88,144.79,6.28088834]
[1750718393107,6.898,144.86,144.82,6.8996]
[1750718393311,6.28088834,144.89,144.8,6.08657507]
[1750718393809,6.28088834,144.89,144.81,6.28088834]
[1750718394015,6.28088834,144.89,144.81,12.36746341]
[1750718394210,6.898,144.86,144.81,12.36746341]
[1750718394511,72.1,144.92,144.83,6.28088834]
[1750718394712,72.1,144.92,144.83,12.36746341]
[1750718394904,72.1,144.92,144.85,6.28088834]
[1750718395300,2.3716,144.93,144.85,6.28088834]
[1750718396103,8.65248834,144.93,144.84,6.08657507]
[1750718396314,6.28088834,144.92,144.83,2.3097]
[1750718396516,6.28088834,144.92,144.83,8.39627507]
[1750718396712,6.28088834,144.92,144.83,6.08657507]
[1750718397199,6.28088834,144.92,144.82,6.28088834]
[1750718397200,6.8984,144.86,144.82,12.36746341]
[1750718397402,6.8984,144.86,144.83,6.08657507]
[1750718398205,6.8981,144.86,144.83,6.08657507]
[1750718398608,6.28088834,144.92,144.83,6.08657507]
[1750718399213,6.28088834,144.9,144.83,6.08657507]
[1750718399422,6.28088834,144.9,144.82,6.08657507]
[1750718399814,6.28088834,144.86,144.8,6.08657507]
[1750718400127,6.28088834,144.86,144.79,6.08657507]
[1750718400324,6.28088834,144.86,144.78,8.42497507]
[1750718400325,6.9009,144.8,144.78,8.42497507]
[1750718400521,6.28088834,144.86,144.78,8.42497507]
[1750718400717,6.28088834,144.84,144.78,6.08657507]
[1750718400926,6.28088834,144.84,144.76,78.64220012]
[1750718400927,6.28088834,144.84,144.77,6.08657507]
[1750718401337,6.9028,144.76,144.75,6.08657507]
[1750718401541,6.28088834,144.82,144.75,6.08657507]
[1750718401834,2.321,144.83,144.76,6.08657507]
[1750718402035,6.28088834,144.82,144.75,6.08657507]
[1750718402237,9.74022434,144.81,144.74,6.08657507]
[1750718402537,9.74022434,144.81,144.72,6.08657507]
[1750718402738,9.74022434,144.81,144.68,23.84102453]
[1750718402739,9.74022434,144.81,144.71,6.08657507]
[1750718402940,12.49935393,144.81,144.71,6.08657507]
[1750718403135,9.74022434,144.81,144.71,6.08657507]
[1750718403338,12.49935658,144.81,144.7,6.08657507]
[1750718403537,2.75913224,144.82,144.71,9.74022434]
[1750718403738,2.321,144.83,144.74,9.74022434]
[1750718403939,2.321,144.83,144.75,6.08657507]
[1750718404143,2.321,144.83,144.74,15.82679941]
[1750718404442,2.321,144.83,144.75,6.08657507]
[1750718404938,2.355,144.84,144.76,8.48527507]
[1750718405137,6.9017,144.79,144.76,8.48527507]
[1750718405442,6.9017,144.79,144.76,2.3987]
[1750718406032,6.9021,144.78,144.76,2.3987]
[1750718406237,9.74022434,144.82,144.73,2.2411]
[1750718406438,12.09522434,144.84,144.73,2.2411]
[1750718406632,2.355,144.84,144.75,9.74022434]
[1750718407244,12.09522434,144.84,144.73,2.2411]
[1750718407839,2.355,144.84,144.73,2.2411]
[1750718408044,9.74022434,144.83,144.73,2.2411]
[1750718408444,5.10246702,144.84,144.71,264.72657507]
[1750718408633,9.74022434,144.8,144.72,2.3806]
[1750718408839,9.74022434,144.8,144.71,258.64]
[1750718409238,6.9047,144.72,144.71,258.64]
[1750718409449,6.9047,144.72,144.71,70.74]
[1750718409745,2.1902,144.79,144.68,6.9066]
[1750718409949,9.74022434,144.77,144.66,81.44327507]
[1750718410340,9.74022434,144.77,144.66,272.81692434]
[1750718411150,9.74022434,144.77,144.66,278.90349941]
[1750718411448,6.9051,144.72,144.68,6.9063]
[1750718411648,2.1902,144.79,144.68,9.74022434]
[1750718411649,11.93042434,144.79,144.68,9.74022434]
[1750718411944,11.93042434,144.79,144.7,6.9053]
[1750718412348,11.93042434,144.79,144.69,6.906]
[1750718412548,9.74022434,144.77,144.66,263.0767]
[1750718412751,9.74022434,144.77,144.66,325.0767]
[1750718413140,6.9055,144.71,144.67,6.9068]
[1750718413337,2.1902,144.79,144.68,9.74022434]
[1750718413542,2.1902,144.79,144.66,269.16327507]
[1750718413543,2.1902,144.79,144.7,9.74022434]
[1750718413747,6.9036,144.75,144.7,9.74022434]
[1750718413937,2.1902,144.79,144.7,9.74022434]
[1750718414145,6.9036,144.75,144.71,6.9048]
[1750718414349,2.1902,144.79,144.69,9.74022434]
[1750718414847,9.74022434,144.78,144.66,278.90349941]
[1750718415042,9.74022434,144.78,144.66,272.81692434]
[1750718415637,11.93042434,144.79,144.66,278.90349941]
[1750718415842,9.74022434,144.77,144.66,272.81692434]
[1750718416041,9.74022434,144.77,144.66,263.0767]
[1750718416448,6.905,144.72,144.68,6.9064]
[1750718416659,9.74022434,144.77,144.68,6.9064]
[1750718416952,6.9055,144.71,144.67,194.2268]
[1750718417248,9.74022434,144.77,144.67,187.32]
[1750718417550,2.1902,144.79,144.7,9.74022434]
[1750718417755,70.74,144.81,144.7,9.74022434]
[1750718418352,9.74022434,144.87,144.75,9.74022434]
[1750718418654,70.76,144.88,144.76,191.8754]
[1750718418655,9.74022434,144.85,144.76,191.8754]
[1750718418948,9.74022434,144.85,144.77,6.9021]
[1750718419145,9.74022434,144.85,144.76,191.8754]
[1750718419548,6.9007,144.81,144.77,6.9023]
[1750718419951,9.74022434,144.85,144.76,191.8754]
[1750718420154,6.9014,144.79,144.76,198.7781]
[1750718420352,9.74022434,144.85,144.76,198.7781]
[1750718420753,6.9012,144.8,144.76,198.7781]
[1750718421447,6.9005,144.81,144.77,6.9022]
[1750718421642,9.74022434,144.87,144.76,201.61562434]
[1750718421957,6.8966,144.89,144.79,9.74022434]
[1750718422149,6.8231,144.96,144.84,9.74022434]
[1750718422457,610.1808,145.03,144.8,11.94362434]
[1750718422458,9.74022434,144.97,144.89,6.8963]
[1750718422747,2.73246345,144.98,144.87,2.2034]
[1750718422952,9.74022434,144.97,144.89,6.8962]
[1750718423148,9.74022434,144.97,144.87,2.2034]
[1750718423553,9.74022434,144.97,144.9,6.8961]
[1750718423854,9.74022434,144.98,144.87,11.94362434]
[1750718424154,9.74022434,144.98,144.89,6.8964]
[1750718424558,9.74022434,144.96,144.88,6.897]
[1750718424749,9.74022434,144.96,144.85,272.10292434]
[1750718425052,6.8969,144.89,144.85,262.3627]
[1750718425258,9.74022434,144.92,144.85,262.3627]
[1750718425759,6.8965,144.9,144.85,262.3627]
[1750718425951,2.3932,144.93,144.85,262.3627]
[1750718426147,8.33245227,145.08,144.85,262.3627]
[1750718426148,70.74,145.04,144.89,9.74022434]
[1750718426456,70.74,145.04,144.85,262.3627]
[1750718426457,9.74022434,145.01,144.92,9.74022434]
[1750718426649,9.74022434,145.01,144.92,186.56]
[1750718427154,9.74022434,145.01,144.92,193.4547]
[1750718427155,6.8929,144.97,144.92,193.4547]
[1750718427356,9.74022434,145.01,144.92,186.56]
[1750718428245,78.94022434,145.01,144.92,186.56]
[1750718428450,2.4159,145.0,144.92,186.56]
[1750718428648,6.8947,144.93,144.92,186.56]
[1750718428857,14.50572434,144.99,144.92,186.56]
[1750718429053,4.7655,144.99,144.92,186.56]
[1750718430259,6.8928,144.97,144.92,186.56]
[1750718430460,2.4159,145.0,144.92,186.56]
[1750718430658,2.4159,145.0,144.92,196.30022434]
[1750718430960,2.4159,145.0,144.92,203.19522434]
[1750718431163,2.4159,145.0,144.92,196.30022434]
[1750718431557,69.2,145.01,144.92,196.30022434]
[1750718431861,69.2,145.01,144.92,186.56]
[1750718432248,69.2,145.01,144.93,4.6833]
[1750718432948,69.2,145.01,144.93,14.42352434]
[1750718433265,69.2,145.01,144.95,6.8933]
[1750718433464,2.2036,145.02,144.95,6.8933]
[1750718433661,6.8916,145.0,144.95,6.8933]
[1750718433863,69.16,145.06,144.96,9.74022434]
[1750718434068,2.3351,145.08,144.99,9.74022434]
[1750718434362,2.3351,145.08,145.0,185.92]
[1750718434660,9.74022434,145.07,145.0,185.92]
[1750718434864,6.8909,145.01,145.0,185.92]
[1750718435357,9.74022434,145.03,144.94,185.86]
[1750718436249,6.8936,144.96,144.94,185.86]
[1750718436557,9.74022434,145.03,144.93,190.4033]
[1750718436757,69.16,145.06,144.93,190.4033]
[1750718436960,9.74022434,145.03,144.93,190.4033]
[1750718437355,9.74022434,145.03,144.94,6.8939]
[1750718437662,9.74022434,145.03,144.93,190.4033]
[1750718437862,9.74022434,145.03,144.94,6.8938]
[1750718438253,9.74022434,145.03,144.93,190.4033]
[1750718438459,78.90022434,145.06,144.95,9.74022434]
[1750718438968,78.90022434,145.06,144.95,16.63352434]
[1750718438969,6.8917,145.0,144.95,16.63352434]
[1750718439154,9.74022434,144.99,144.87,605.54022434]
[1750718439357,9.74022434,144.97,144.88,4.756]
[1750718440066,6.8958,144.91,144.88,11.653]
[1750718440257,9.74022434,144.97,144.88,4.756]
[1750718440664,9.74022434,144.97,144.88,11.6529]
[1750718441056,9.74022434,144.97,144.88,4.756]
[1750718441252,9.74022434,144.91,144.81,9.74022434]
[1750718441457,69.14,144.92,144.81,4.6622]
[1750718441654,69.14,144.92,144.83,6.8993]
[1750718441865,69.14,144.92,144.82,9.74022434]
[1750718442266,69.14,144.92,144.82,71.74022434]
[1750718442668,69.14,144.92,144.81,199.74242434]
[1750718442863,69.14,144.92,144.83,9.74022434]
[1750718443767,76.0353,144.92,144.87,6.8972]
[1750718444063,69.14,144.92,144.83,9.74022434]
[1750718444268,9.74022434,144.95,144.84,69.16]
[1750718444859,6.895,144.93,144.88,6.8968]
[1750718445059,9.74022434,144.95,144.84,69.16]
[1750718446067,9.74022434,144.93,144.84,69.16]
[1750718447671,2.284,144.92,144.84,69.16]
[1750718448367,6.8971,144.88,144.84,69.16]
[1750718448565,69.16,144.9,144.81,4.6622]
[1750718448880,69.16,144.9,144.81,2.2903]
[1750718449061,78.90022434,144.9,144.81,2.2903]
[1750718449262,69.16,144.9,144.81,2.2903]
[1750718449472,78.90022434,144.9,144.81,9.1906]
[1750718449863,78.90022434,144.9,144.81,2.2903]
[1750718450069,6.8989,144.85,144.8,2.3837]
[1750718450574,9.74022434,144.86,144.77,69.16]
[1750718450765,9.74022434,144.86,144.76,4.6592]
[1750718450968,6.9009,144.8,144.76,6.9025]
[1750718451271,6.9009,144.8,144.72,9.74022434]
[1750718451272,9.74022434,144.8,144.72,4.6592]
[1750718451476,6.903,144.76,144.72,6.9043]
[1750718451667,9.74022434,144.8,144.68,782.9043]
[1750718452068,9.74022434,144.77,144.68,187.0043]
[1750718452263,69.16,144.77,144.68,2.3043]
[1750718452475,69.16,144.77,144.68,64.3043]
[1750718452671,69.16,144.77,144.69,9.74022434]
[1750718453074,14.20352434,144.83,144.72,9.74022434]
[1750718453373,83.38352434,144.83,144.72,9.74022434]
[1750718453774,6.9021,144.78,144.72,9.74022434]
[1750718453976,9.74022434,144.81,144.72,9.74022434]
[1750718454176,73.6433,144.83,144.72,9.74022434]
[1750718454367,73.6433,144.83,144.72,78.92022434]
[1750718454676,595.9,144.84,144.75,9.74022434]
[1750718454864,2.3329,144.85,144.76,4.5031]
[1750718455069,2.3329,144.85,144.76,6.7335]
[1750718455264,6.9002,144.82,144.77,6.902]
[1750718455678,2.3329,144.85,144.76,6.7335]
[1750718456370,2.3329,144.85,144.76,4.5031]
[1750718456971,9.74022434,144.84,144.76,4.5031]
[1750718457579,9.74022434,144.84,144.76,2.223]
[1750718458386,6.9023,144.77,144.76,2.223]
[1750718459375,67.6,144.81,144.73,184.5]
[1750718459672,12.10362434,144.8,144.73,184.5]
[1750718459878,6.9036,144.75,144.68,198.30352434]
[1750718460079,12.10362434,144.8,144.7,6.9053]
[1750718460582,6.9036,144.75,144.71,6.9049]
[1750718460779,12.10362434,144.8,144.71,6.9049]
[1750718461073,6.9035,144.75,144.69,9.74022434]
[1750718461277,12.10362434,144.8,144.69,9.74022434]
[1750718461477,6.904,144.74,144.69,9.74022434]
[1750718461978,12.10362434,144.8,144.68,188.5633]
[1750718461979,2.3634,144.8,144.68,4.4433]
[1750718462180,2.3634,144.8,144.7,9.74022434]
[1750718462378,2.3634,144.8,144.72,6.9047]
[1750718462580,6.9035,144.75,144.7,9.74022434]
[1750718462778,9.74022434,144.79,144.68,14.18352434]
[1750718463180,9.74022434,144.77,144.68,4.4433]
[1750718463381,9.74022434,144.77,144.7,6.9056]
[1750718463582,9.74022434,144.77,144.68,4.4433]
[1750718464180,6.9057,144.7,144.68,4.4433]
[1750718464376,6.9057,144.7,144.56,7.20691597]
[1750718464377,77.34022434,144.7,144.56,7.20691597]
[1750718464578,77.34022434,144.7,144.54,75.52220012]
[1750718464579,9.74022434,144.68,144.57,4.6159]
[1750718464774,6.9151,144.69,144.58,9.74022434]
[1750718465071,4.6753,144.69,144.58,9.74022434]
[1750718465474,77.34022434,144.7,144.57,4.6159]
[1750718465674,67.6,144.7,144.6,9.74022434]
[1750718465983,2.2398,144.72,144.62,9.74022434]
[1750718466374,2.2398,144.72,144.6,129.62]
[1750718466675,9.74022434,144.71,144.6,139.36022434]
[1750718467072,9.74022434,144.71,144.6,129.62]
[1750718467273,14.28262434,144.77,144.65,9.74022434]
[1750718467472,9.74022434,144.75,144.66,2.3317]
[1750718467673,9.74022434,144.74,144.64,183.6]
[1750718467869,67.62,144.75,144.64,183.6]
[1750718468076,596.42,144.76,144.64,183.6]
[1750718468286,664.04,144.76,144.69,9.74022434]
[1750718468579,596.42,144.76,144.69,9.74022434]
[1750718468779,596.42,144.76,144.65,4.8198]
[1750718468780,4.5424,144.77,144.71,9.74022434]
[1750718468981,2.2398,144.79,144.72,9.74022434]
[1750718469179,67.62,144.8,144.72,9.74022434]
[1750718469384,67.62,144.8,144.72,16.64492434]
[1750718469575,67.62,144.8,144.72,9.74022434]
[1750718469779,77.36022434,144.8,144.66,67.62]
[1750718469978,77.36022434,144.8,144.69,9.74022434]
[1750718470173,9.74022434,144.78,144.66,77.36022434]
[1750718470975,9.74022434,144.78,144.66,67.62]
[1750718471287,77.36022434,144.8,144.64,183.6]
[1750718471485,6.9061,144.69,144.64,183.6]
[1750718471781,67.62,144.71,144.64,183.6]
[1750718472590,6.9073,144.67,144.64,183.6]
[1750718472883,9.74022434,144.65,144.54,1.20321549]
[1750718473188,9.74022434,144.62,144.53,2.3728]
[1750718473388,9.74022434,144.6,144.53,2.3728]
[1750718473586,67.62,144.62,144.53,2.3728]
[1750718473778,9.74022434,144.58,144.53,2.3728]
[1750718474082,67.62,144.62,144.53,2.3728]
[1750718474591,9.74022434,144.61,144.53,2.3728]
[1750718474888,77.38022434,144.61,144.53,2.3728]
[1750718475083,6.9258,144.64,144.53,2.3728]
[1750718475282,4.5701,144.64,144.54,9.74022434]
[1750718475477,14.31032434,144.64,144.53,12.11302434]
[1750718475682,6.9097,144.62,144.53,81.02642434]
[1750718475877,4.5701,144.64,144.53,74.11302434]
[1750718476182,6.9095,144.62,144.53,64.3728]
[1750718476385,9.74022434,144.6,144.53,2.3728]
[1750718476978,77.40022434,144.6,144.53,2.3728]
[1750718477182,77.40022434,144.6,144.52,3.59939648]
[1750718477678,9.74022434,144.58,144.52,3.59939648]
[1750718477877,67.66,144.6,144.52,3.59939648]
[1750718477878,9.74022434,144.56,144.52,3.59939648]
[1750718478272,9.74022434,144.56,144.44,8.07090644]
[1750718478485,4.6944,144.57,144.47,9.74022434]
[1750718478686,2.3747,144.57,144.45,9.74022434]
[1750718478990,77.40022434,144.61,144.48,9.74022434]
[1750718479180,77.40022434,144.61,144.44,190.99090644]
[1750718479379,77.40022434,144.61,144.49,9.74022434]
[1750718479575,9.74022434,144.61,144.51,9.74022434]
[1750718479787,4.6727,144.63,144.52,14.27502434]
[1750718479788,14.41292434,144.63,144.52,14.27502434]
[1750718479985,2.353,144.63,144.52,14.27502434]
[1750718480185,6.9106,144.6,144.52,14.27502434]
[1750718480383,12.09322434,144.63,144.52,14.27502434]
[1750718480584,9.74022434,144.61,144.52,4.5348]
[1750718480888,6.9114,144.59,144.52,4.5348]
[1750718481090,9.74022434,144.61,144.52,4.5348]
[1750718481978,9.74022434,144.61,144.54,6.9132]
[1750718482183,12.09322434,144.63,144.52,14.27502434]
[1750718482385,2.353,144.63,144.44,1.20400644]
[1750718482587,9.74022434,144.6,144.39,9.74022434]
[1750718482783,9.74022434,144.48,144.38,1.20427726]
[1750718483082,2.204,144.59,144.42,9.74022434]
[1750718483083,9.74022434,144.55,144.42,9.74022434]
[1750718483286,9.74022434,144.55,144.43,67.68]
[1750718483485,9.74022434,144.49,144.38,7.20808173]
[1750718483686,9.74022434,144.49,144.38,1.20427726]
[1750718483991,9.74022434,144.49,144.32,67.68]
[1750718483992,9.74022434,144.42,144.34,2.2086]
[1750718484192,9.74022434,144.44,144.34,2.2086]
[1750718485086,6.9176,144.45,144.38,6.9207]
[1750718485283,14.36402434,144.47,144.36,9.74022434]
[1750718485885,6.9177,144.45,144.38,6.9209]
[1750718486095,6.9177,144.45,144.38,67.72]
[1750718486393,6.9177,144.45,144.39,62.0]
[1750718486693,9.74022434,144.47,144.39,62.0]
[1750718487589,4.4933,144.54,144.39,62.0]
[1750718487791,14.23352434,144.54,144.41,9.74022434]
[1750718488186,9.74022434,144.48,144.38,597.28]
[1750718488381,4.4933,144.54,144.39,9.74022434]
[1750718488382,9.74022434,144.49,144.39,9.74022434]
[1750718488582,6.9148,144.51,144.44,6.9176]
[1750718488792,9.74022434,144.53,144.44,6.9176]
[1750718488994,9.74022434,144.53,144.43,73.1056]
[1750718489189,6.9153,144.5,144.43,73.1056]
[1750718489389,9.74022434,144.53,144.43,73.1056]
[1750718489695,6.9147,144.51,144.43,73.1056]
[1750718490092,4.4933,144.54,144.43,73.1056]
[1750718490286,2.1945,144.54,144.43,73.1056]
[1750718490489,12.01282434,144.59,144.43,73.1056]
[1750718490697,9.74022434,144.53,144.43,73.1056]
[1750718490891,6.9156,144.5,144.44,68.9179]
[1750718491088,9.74022434,144.53,144.44,62.0]
[1750718491292,9.74022434,144.5,144.44,62.0]
[1750718491590,9.74022434,144.56,144.44,62.0]
[1750718492187,6.9133,144.54,144.47,6.9165]
[1750718492387,14.23472434,144.58,144.46,9.74022434]
[1750718492589,2.2746,144.58,144.49,9.74022434]
[1750718492789,6.9124,144.56,144.5,75.5127]
[1750718492988,2.2199,144.63,144.52,9.74022434]
[1750718493189,11.96012434,144.63,144.52,9.74022434]
[1750718493394,11.96012434,144.63,144.51,4.6154]
[1750718494091,9.74022434,144.6,144.51,4.6154]
[1750718494389,9.74022434,144.57,144.49,597.42]
[1750718494689,2.1965,144.59,144.49,597.42]
[1750718494891,6.9136,144.54,144.49,597.42]
[1750718495395,4.543,144.59,144.5,62.0]
[1750718495593,9.74022434,144.57,144.48,66.22]
[1750718495793,2.2352,144.56,144.48,66.22]
[1750718496094,6.9156,144.5,144.45,189.0575]
[1750718496294,9.74022434,144.54,144.45,182.14]
[1750718496785,9.74022434,144.54,144.44,4.6628]
[1750718497390,9.74022434,144.54,144.42,599.6071]
[1750718497694,9.74022434,144.54,144.43,9.74022434]
[1750718497888,11.97542434,144.56,144.43,9.74022434]
[1750718498294,6.9147,144.52,144.43,9.74022434]
[1750718498496,11.97542434,144.56,144.44,62.0]
[1750718498890,6.9139,144.53,144.48,6.916]
[1750718499092,9.74022434,144.54,144.44,62.0]
[1750718499288,9.74022434,144.55,144.44,62.0]
[1750718499488,6.9148,144.51,144.46,6.917]
[1750718499688,9.74022434,144.55,144.44,62.0]
[1750718499995,2.2352,144.56,144.44,62.0]
[1750718500198,9.74022434,144.55,144.44,62.0]
[1750718500593,6.9147,144.52,144.48,6.916]
[1750718500796,9.74022434,144.55,144.48,6.916]
[1750718500992,2.2352,144.56,144.49,6.9155]
[1750718501193,2.2352,144.56,144.45,9.74022434]
[1750718501391,2.2352,144.56,144.46,2.3747]
[1750718501593,6.9146,144.52,144.47,6.9165]
[1750718501989,6.9146,144.52,144.46,2.3747]
[1750718502196,6.9137,144.54,144.49,6.9155]
[1750718502595,2.2352,144.56,144.46,2.3747]
[1750718502803,9.74022434,144.54,144.46,6.9167]
[1750718503103,9.74022434,144.51,144.42,4.5463]
[1750718503497,9.74022434,144.51,144.41,2.2152]
[1750718503697,6.9171,144.47,144.42,6.9187]
[1750718504292,6.9172,144.46,144.41,6.9194]
[1750718505001,6.9167,144.47,144.39,9.74022434]
[1750718505198,14.44332434,144.5,144.39,9.74022434]
[1750718505507,6.915,144.51,144.42,9.74022434]
[1750718505803,78.22932434,144.54,144.42,9.74022434]
[1750718506002,78.22932434,144.54,144.43,62.0]
[1750718506196,6.9153,144.5,144.45,6.9174]
[1750718506400,78.22932434,144.54,144.43,62.0]
[1750718507302,78.22932434,144.54,144.46,6.9168]
[1750718507896,9.74022434,144.52,144.4,6.00380447]
[1750718508105,9.74022434,144.52,144.4,15.74402881]
[1750718508302,6.9153,144.5,144.42,9.74022434]
[1750718508798,78.22932434,144.54,144.42,9.74022434]
[1750718509101,9.74022434,144.52,144.42,9.74022434]
[1750718509298,9.74022434,144.52,144.39,6.00380447]
[1750718509502,9.74022434,144.49,144.4,6.9198]
[1750718509702,9.74022434,144.49,144.38,78.91760447]
[1750718509703,4.6541,144.48,144.38,72.9138]
[1750718510004,4.6541,144.48,144.39,6.9204]
[1750718510196,9.74022434,144.47,144.36,6.00380447]
[1750718510404,6.9181,144.44,144.39,6.9201]
[1750718510704,9.74022434,144.47,144.35,9.74022434]
[1750718510893,6.9182,144.44,144.39,6.9201]
[1750718511091,6.9182,144.44,144.36,62.0]
[1750718511092,9.74022434,144.44,144.36,62.0]
[1750718511402,9.74022434,144.44,144.32,76.68920447]
[1750718511900,9.74022434,144.44,144.33,15.74402881]
[1750718512096,9.74022434,144.44,144.32,77.89437841]
[1750718512291,2.3874,144.46,144.36,9.74022434]
[1750718512701,4.6541,144.48,144.36,9.74022434]
[1750718512899,12.12762434,144.5,144.39,9.74022434]
[1750718513100,6.916,144.49,144.4,73.1203]
[1750718513408,4.652,144.54,144.42,9.74022434]
[1750718513697,14.39222434,144.54,144.42,9.74022434]
[1750718514302,14.39222434,144.54,144.43,62.0]
[1750718514502,6.9157,144.5,144.45,6.9174]
[1750718515096,14.39222434,144.54,144.44,6.9177]
[1750718515293,14.39222434,144.54,144.43,62.0]
[1750718515499,14.39222434,144.54,144.44,6.00380447]
[1750718515700,14.39222434,144.54,144.47,6.9163]
[1750718516100,6.9138,144.53,144.48,6.9157]
[1750718516398,6.9138,144.53,144.44,15.74402881]
[1750718516399,2.4028,144.54,144.44,15.74402881]
[1750718516600,2.4028,144.54,144.45,72.24380447]
[1750718516806,6.915,144.51,144.47,6.9166]
[1750718516998,6.915,144.51,144.45,72.24380447]
[1750718517199,6.915,144.51,144.46,6.917]
[1750718517402,2.4028,144.54,144.45,72.24380447]
[1750718517403,12.14302434,144.54,144.45,72.24380447]
[1750718518006,6.9153,144.5,144.45,72.24380447]
[1750718518199,12.14302434,144.54,144.45,72.24380447]
[1750718518396,9.74022434,144.5,144.44,6.00380447]
[1750718518602,9.74022434,144.5,144.42,6.00380447]
[1750718518810,9.74022434,144.5,144.43,12.92210447]
[1750718519106,9.74022434,144.5,144.43,6.00380447]
[1750718519300,66.24,144.52,144.43,6.00380447]
[1750718519301,75.98022434,144.52,144.43,6.00380447]
[1750718519507,6.9148,144.51,144.44,6.00380447]
[1750718520000,6.9148,144.51,144.42,17.66242446]
[1750718520001,6.9148,144.51,144.47,6.9166]
[1750718520197,6.9143,144.52,144.46,6.00380447]
[1750718520508,12.14302434,144.54,144.46,6.00380447]
[1750718520707,12.14302434,144.54,144.45,6.00380447]
[1750718520905,2.72556785,144.53,144.45,6.00380447]
[1750718521106,9.74022434,144.51,144.44,6.00380447]
[1750718521311,9.74022434,144.51,144.43,6.00380447]
[1750718521505,9.74022434,144.51,144.44,6.00380447]
[1750718522110,6.9157,144.49,144.44,6.00380447]
[1750718522309,9.74022434,144.52,144.44,6.00380447]
[1750718522712,9.74022434,144.49,144.43,6.00380447]
[1750718522910,2.3644,144.48,144.41,193.90320447]
[1750718523215,2.3644,144.48,144.41,6.00380447]
[1750718523413,2.3644,144.48,144.4,6.00380447]
[1750718523713,2.3644,144.48,144.39,6.00380447]
[1750718523905,2.3644,144.48,144.38,597.64]
[1750718523906,2.3644,144.48,144.43,6.9182]
[1750718524108,2.3644,144.48,144.41,6.00380447]
[1750718524308,12.14922434,144.51,144.43,6.00380447]
[1750718524506,76.94462434,144.53,144.45,6.00380447]
[1750718524716,6.9143,144.52,144.45,6.00380447]
[1750718525019,2.3644,144.53,144.47,6.00380447]
[1750718525314,2.3644,144.53,144.48,12.91990447]
[1750718525912,2.3644,144.53,144.48,6.00380447]
[1750718526312,6.9144,144.52,144.48,6.00380447]
[1750718526807,9.74022434,144.52,144.48,6.00380447]
[1750718527004,9.74022434,144.52,144.45,186.14380447]
[1750718527215,9.74022434,144.49,144.43,6.00380447]
[1750718527407,9.74022434,144.48,144.43,6.00380447]